fUSD/lending_fUSD_20250720
["ID","MTS","AMOUNT","RATE_DAILY","PERIOD"]
[373420885,1752997289795,-239.61150925,0.00035191,120]
[373420886,1752997289869,-2794.38389167,0.00035191,120]
[373420887,1752997289943,-2437.37209997,0.00035191,120]
[373420888,1752997290019,-2360.0,0.00035191,120]
[373420889,1752997290089,-157.49837065,0.00035191,120]
[373420890,1752997290161,-438.31369882,0.00035191,60]
[373420891,1752997290233,-1986.10401408,0.00035191,120]
[373420892,1752997290306,-388.87089445,0.00035191,90]
[373420893,1752997290379,-190.13046811,0.00035191,120]
[373420894,1752997290454,-766.8047125,0.00035191,120]
[373420895,1752997290530,-1672.86260251,0.00035191,120]
[373420896,1752997290599,-3590.85949857,0.00035191,120]
[373420897,1752997290669,-269.3374551,0.00035191,120]
[373420898,1752997290741,-1564.78487055,0.00035191,120]
[373420899,1752997290812,-297.11688295,0.00035191,120]
[373420900,1752997290887,-3265.86366151,0.00035191,120]
[373420901,1752997290960,-704.59308362,0.00035191,120]
[373420902,1752997291037,-722.55677264,0.00035191,120]
[373420903,1752997291111,-340.58382518,0.00035191,120]
[373420904,1752997291191,-769.04905712,0.00035191,120]
[373420905,1752997291272,-1000.75791923,0.00035191,120]
[373420906,1752997291355,-333.72360749,0.00035191,120]
[373420907,1752997291433,-879.6013477,0.00035191,120]
[373420908,1752997291512,-766.53165256,0.00035191,120]
[373420909,1752997291593,-198.75065174,0.00035191,120]
[373420910,1752997291674,-2705.1894945,0.00035191,60]
[373420911,1752997291755,-1229.83046162,0.00035191,120]
[373420912,1752997291836,-494.4459003,0.00035191,120]
[373420913,1752997291920,-407.97569724,0.00035191,120]
[373420914,1752997292001,-3078.57286493,0.00035191,120]
[373420915,1752997292078,-1864.38340052,0.00035191,120]
[373420916,1752997292155,-783.09692702,0.00035191,120]
[373420917,1752997292228,-292.49236525,0.00035191,120]
[373420918,1752997292317,-670.82410636,0.00035191,120]
[373420919,1752997292402,-162.85961922,0.00035191,120]
[373420920,1752997292481,-2500.8210904,0.00035191,120]
[373420921,1752997292556,-1787.12239792,0.00035191,120]
[373420922,1752997292630,-1272.51116988,0.00035191,120]
[373420923,1752997292724,-152.25906104,0.00035191,120]
[373420924,1752997292802,-299.85516592,0.00035191,120]
[373420925,1752997292878,-407.55013752,0.00035191,60]
[373420926,1752997292954,-624.0,0.00035191,120]
[373420927,1752997293033,-500.0,0.00035191,120]
[373420928,1752997293111,-1117641.69116502,0.00035191,60]
[373420929,1752997293189,-1000.0,0.00035191,120]
[373420930,1752997293271,-1750.0,0.00035191,120]
[373420931,1752997293353,-1102.6142917,0.00035191,120]
[373420932,1752997293433,-3562.0,0.00035191,120]
[373420933,1752997293513,-1500.59876431,0.00035191,120]
[373420934,1752997293590,-154.575186,0.00035191,120]
[373420935,1752997293670,-500.0,0.00035191,120]
[373420936,1752997293752,-293.774,0.00035191,120]
[373420937,1752997293835,-7344.68585364,0.00035191,120]
[373420938,1752997293921,-284.0,0.00035191,120]
[373420939,1752997294336,-172.59234885,0.00035191,120]
[373420940,1752997294418,-174.77659419,0.00035191,120]
[373420941,1752997294500,-11891.16295438,0.00035191,120]
[373420942,1752997294581,-1201.999999,0.00035191,120]
[373420943,1752997294658,-1846.60437954,0.00035191,120]
[373420944,1752997294734,-23000.0,0.00035191,120]
[373420945,1752997294811,-361.30744376,0.00035191,90]
[373420946,1752997294889,-1770156.54465167,0.00035191,120]
[373420947,1752997300996,-3000000.0,0.00035191,120]
[373420948,1752997315196,-2093047.9065363,0.00035191,120]
[373420949,1752997315276,-3037.73748693,0.00035191,120]
[373420950,1752997315356,-1000.0,0.00035191,60]
[373420951,1752997315430,-1000.0,0.00035191,90]
[373420952,1752997315506,-1000.0,0.00035191,120]
[373420953,1752997315581,-326.8096939,0.00035191,120]
[373420954,1752997315659,-389.0,0.00035191,60]
[373420955,1752997315729,-389.0,0.00035191,60]
[373420956,1752997315800,-1000.0,0.00035191,120]
[373420957,1752997315877,-189.60264224,0.00035191,120]
[373420958,1752997315953,-500.0,0.00035191,120]
[373420959,1752997316027,-350.57,0.00035191,120]
[373420960,1752997316097,-2213.0,0.00035191,60]
[373420961,1752997316173,-24458.81339528,0.00035191,60]
[373420962,1752997316250,-508.51368768,0.00035191,120]
[373420963,1752997316333,-500.0,0.00035191,120]
[373420964,1752997316411,-500.0,0.00035191,120]
[373420965,1752997316490,-500.0,0.00035191,120]
[373420966,1752997316566,-500.0,0.00035191,120]
[373420967,1752997316638,-512.07,0.00035191,120]
[373420968,1752997316720,-20932.12,0.00035191,60]
[373420969,1752997316794,-303.0,0.00035191,120]
[373420970,1752997317122,-500.0,0.00035191,120]
[373420971,1752997317200,-355.49909492,0.00035191,120]
[373420972,1752997317276,-155.0,0.00035191,60]
[373420973,1752997317358,-936.799999,0.00035191,60]
[373420974,1752997317437,-936.799999,0.00035191,90]
[373420975,1752997317519,-936.799999,0.00035191,120]
[373420976,1752997317597,-275.57492097,0.00035191,60]
[373420977,1752997317672,-841.46630722,0.00035191,120]
[373420978,1752997317746,-982.0,0.00035191,120]
[373420979,1752997317817,-1946.54812466,0.00035191,120]
[373420980,1752997317891,-153.53603088,0.00035191,120]
[373420981,1752997317967,-401.25538333,0.00035191,120]
[373420982,1752997318038,-175.0,0.00035191,120]
[373420983,1752997318111,-1795.42,0.00035191,120]
[373420984,1752997318184,-3728.20160842,0.00035191,120]
[373420985,1752997318261,-1832.0,0.00035191,120]
[373420986,1752997318345,-500.0,0.00035191,120]
[373420987,1752997318425,-500.0,0.00035191,120]
[373420988,1752997318509,-500.0,0.00035191,120]
[373420989,1752997318583,-500.0,0.00035191,120]
[373420990,1752997318657,-261.4250547,0.00035191,120]
[373420991,1752997318730,-360.58115,0.00035191,120]
[373420992,1752997318801,-143257.2205547,0.00035191,120]
[373420993,1752997318877,-500.0,0.00035191,120]
[373420994,1752997318948,-500.0,0.00035191,120]
[373420995,1752997319020,-500.0,0.00035191,120]
[373420996,1752997319093,-550.54,0.00035191,120]
[373420997,1752997319168,-500.0,0.00035191,120]
[373420998,1752997319243,-500.0,0.00035191,120]
[373420999,1752997319321,-331.79,0.00035191,120]
[373421000,1752997319407,-220.0,0.00035191,120]
[373421001,1752997319513,-21234.43285772,0.00035191,120]
[373421002,1752997319602,-3889.50133917,0.00035191,120]
[373421003,1752997319679,-3382.72769909,0.00035191,120]
[373421004,1752997319753,-195.18433072,0.00035191,120]
[373421005,1752997319831,-151.61,0.00035191,60]
[373421006,1752997319913,-161.02434747,0.00035191,120]
[373421007,1752997319996,-191617.79580033,0.00035191,60]
[373421008,1752997320082,-1373.96399032,0.00035191,120]
[373421009,1752997381089,601.9,0.00030136,120]
[373421010,1752997392176,509.582505,0.00025009,120]
[373421011,1752997394947,2000.0,0.00025009,120]
[373421012,1752997397406,2035.176362,0.00026509,120]
[373421013,1752997401193,510.615446,0.00025009,120]
[373421014,1752997440223,601.9,0.00030136,120]
[373421015,1752997468519,236.0,0.0002609,120]
[373421016,1752997468609,150.5,0.0002609,120]
[373421017,1752997468930,236.0,0.0002608,120]
[373421018,1752997469089,299.28,0.0002608,120]
[373421019,1752997469451,236.0,0.0002607,120]
[373421020,1752997469906,236.0,0.0002609,120]
[373421021,1752997470352,236.0,0.0002608,120]
[373421022,1752997470801,236.0,0.0002607,120]
[373421023,1752997471293,236.0,0.0002609,120]
[373421024,1752997471739,236.0,0.0002608,120]
[373421025,1752997472244,236.0,0.0002609,120]
[373421026,1752997473330,239.55,0.0002608,120]
[373421027,1752997491365,151.0,0.00025,120]
[373421028,1752997492746,151.0,0.000265,120]
[373421029,1752997494097,151.0,0.00028,120]
[373421030,1752997495493,151.0,0.000295,120]
[373421031,1752997545223,500.0,0.00028767,120]
[373421032,1752997545469,500.0,0.00028767,120]
[373421033,1752997545701,500.0,0.00028767,120]
[373421034,1752997545995,463.17,0.00028767,120]
[373421035,1752997587283,200.0,0.00021918,120]
[373421036,1752997588227,202.07385721,0.00024658,120]
[373421037,1752997588477,150.5,0.0002609,120]
[373421038,1752997588953,150.5,0.0002608,120]
[373421039,1752997589465,166.13,0.0002607,120]
[373421041,1752997626446,4000.0,0.00030137,120]
[373421042,1752997680459,1000.0,0.00030136,120]
[373421043,1752997710020,1175.92960387,0.00030037,120]
[373421044,1752997716616,1928.0,0.0003013,120]
[373421045,1752997725978,1972.0,0.0003013,120]
[373421046,1752997732331,151.0,0.00025,120]
[373421047,1752997733646,151.0,0.000265,120]
[373421048,1752997734918,151.0,0.00028,120]
[373421049,1752997736302,151.0,0.000295,120]
[373421050,1752997740272,983.9,0.00030136,120]
[373421051,1752997765676,1757.31,0.00030137,120]
[373421052,1752997775761,1936.0,0.0003013,120]
[373421055,1752997805601,161.6936766,0.00030137,120]
[373421056,1752997807796,1066.2,0.0003013,120]
[373421057,1752997817389,500.0,0.00027397,120]
[373421058,1752997817835,500.0,0.00027397,120]
[373421059,1752997817965,500.0,0.00027397,120]
[373421060,1752997818088,500.0,0.00027397,120]
[373421061,1752997818440,500.0,0.00027397,120]
[373421062,1752997819186,500.0,0.00027397,120]
[373421063,1752997819436,500.0,0.00027397,120]
[373421064,1752997819701,500.0,0.00027397,120]
[373421065,1752997819943,500.0,0.00027397,120]
[373421066,1752997820196,500.0,0.00027397,120]
[373421067,1752997820428,500.0,0.00027397,120]
[373421068,1752997820912,312.433415,0.00027397,120]
[373421095,1752997832340,-150.0,0.00016003,2]
[373421097,1752997832349,-155.62930471,0.00016003,2]
[373421098,1752997832358,-150.0,0.00016003,2]
[373421099,1752997832367,-150.00000001,0.00016003,2]
[373421100,1752997832376,-150.0,0.00016003,2]
[373421101,1752997832385,-150.0,0.00016003,2]
[373421102,1752997832395,-303.88120869,0.00016104,2]
[373421103,1752997832404,-225.43,0.00016112,2]
[373421104,1752997832414,-65.30948659,0.00016117,2]
[373421105,1752997832446,-1972.99051341,0.00016117,2]
[373421106,1752997832456,-1200.0,0.00016198,2]
[373421107,1752997832466,-300.0,0.00016199,2]
[373421108,1752997832475,-8762.6,0.000162,2]
[373421109,1752997832484,-1534.85,0.00016201,2]
[373421110,1752997832493,-3333.24,0.0001622,2]
[373421111,1752997832503,-550.0,0.00016317,2]
[373421112,1752997832513,-151.0,0.00016318,2]
[373421113,1752997832522,-151.0,0.00016318,2]
[373421114,1752997832532,-151.0,0.00016318,2]
[373421115,1752997832541,-151.0,0.00016318,2]
[373421116,1752997832550,-151.0,0.00016318,2]
[373421117,1752997832559,-151.0,0.00016318,2]
[373421118,1752997832569,-151.0,0.00016318,2]
[373421119,1752997832578,-151.0,0.00016318,2]
[373421120,1752997832587,-151.0,0.00016318,2]
[373421121,1752997832597,-151.0,0.00016318,2]
[373421122,1752997832606,-151.0,0.00016318,2]
[373421123,1752997832615,-151.0,0.00016318,2]
[373421124,1752997832625,-151.0,0.00016318,2]
[373421125,1752997832634,-151.0,0.00016318,2]
[373421127,1752997832644,-151.0,0.00016318,2]
[373421128,1752997832653,-254.39715304,0.00016318,2]
[373421130,1752997832663,-500.0,0.00016318,2]
[373421133,1752997832672,-500.0,0.00016318,2]
[373421135,1752997832682,-500.0,0.00016318,2]
[373421136,1752997832691,-364.6751953,0.00016318,2]
[373421137,1752997832701,-276.4702737,0.00016318,2]
[373421138,1752997832710,-1000.0,0.00016325,2]
[373421139,1752997832719,-14406.39,0.00016328,2]
[373421140,1752997832728,-666.0,0.00016438,2]
[373421141,1752997832737,-171.8722843,0.00016438,2]
[373421142,1752997832746,-156.3,0.00016513,2]
[373421143,1752997832755,-187.83,0.00016513,2]
[373421144,1752997832764,-156.3,0.00016526,2]
[373421146,1752997832774,-156.3,0.00016538,2]
[373421148,1752997832782,-156.3,0.00016551,2]
[373421150,1752997832797,-156.3,0.00016564,2]
[373421152,1752997832806,-156.3,0.00016577,2]
[373421154,1752997832817,-156.3,0.00016589,2]
[373421156,1752997832825,-156.3,0.00016602,2]
[373421178,1752997832835,-156.3,0.00016615,2]
[373421186,1752997833081,-156.3,0.00016627,2]
[373421188,1752997833092,-1738.0,0.00016639,2]
[373421190,1752997833101,-156.3,0.0001664,2]
[373421192,1752997833111,-156.3,0.00016653,2]
[373421194,1752997833121,-1087.0,0.00016663,2]
[373421196,1752997833131,-1531.03630853,0.00016663,2]
[373421198,1752997833141,-156.3,0.00016666,2]
[373421200,1752997833151,-156.3,0.00016678,2]
[373421202,1752997833160,-190.0,0.00016695,7]
[373421204,1752997833169,-164.76,0.00016699,2]
[373421206,1752997833179,-250.0,0.00016722,2]
[373421208,1752997833189,-740.0,0.00016745,2]
[373421210,1752997833199,-290.0,0.00016828,2]
[373421212,1752997833208,-150.0,0.00016892,2]
[373421214,1752997833217,-2585.71991212,0.000169,2]
[373421216,1752997833227,-1815.0,0.0001691,2]
[373421218,1752997833237,-2585.71991183,0.00016934,2]
[373421220,1752997833247,-3099.81009716,0.00016959,2]
[373421222,1752997833256,-2585.71991183,0.00016969,2]
[373421224,1752997833266,-357.65,0.00016992,2]
[373421226,1752997833275,-5000.0,0.00017,2]
[373421228,1752997833285,-2585.71991183,0.00017003,2]
[373421230,1752997833296,-2585.71991183,0.00017038,2]
[373421232,1752997833305,-2585.71991183,0.00017072,2]
[373421234,1752997833315,-2585.71991183,0.00017107,2]
[373421236,1752997833325,-2585.71991183,0.00017141,2]
[373421238,1752997833334,-2585.71991183,0.00017176,2]
[373421240,1752997833344,-1388.97082949,0.0001721,2]
[373421245,1752997833374,-1196.74908234,0.0001721,2]
[373421246,1752997833384,-187.0,0.00017211,2]
[373421248,1752997833394,-2585.71991183,0.00017245,2]
[373421250,1752997833403,-257.0,0.00017246,2]
[373421252,1752997833413,-2585.71991183,0.00017279,2]
[373421254,1752997833423,-257.0,0.00017299,2]
[373421256,1752997833432,-2585.71991183,0.00017314,2]
[373421258,1752997833442,-257.0,0.00017318,2]
[373421260,1752997833452,-187.83,0.00017339,2]
[373421262,1752997833461,-2585.71991183,0.00017348,2]
[373421264,1752997833470,-257.0,0.00017379,2]
[373421266,1752997833480,-2585.71991183,0.00017383,2]
[373421268,1752997833490,-257.0,0.00017411,2]
[373421270,1752997833499,-2585.71991183,0.00017417,2]
[373421272,1752997833509,-257.0,0.00017422,2]
[373421274,1752997833519,-177.0,0.00017426,2]
[373421276,1752997833529,-2585.71991183,0.00017452,2]
[373421278,1752997833538,-1000.0,0.00017454,2]
[373421280,1752997833548,-500.0,0.00017458,2]
[373421282,1752997833557,-168.0,0.0001746,2]
[373421284,1752997833567,-503.60225337,0.00017461,2]
[373421286,1752997833577,-257.0,0.00017464,2]
[373421288,1752997833587,-257.0,0.00017471,2]
[373421290,1752997833596,-2585.71991183,0.00017486,2]
[373421292,1752997833606,-6197.54349909,0.0001749,2]
[373421294,1752997833616,-168.0,0.00017495,2]
[373421296,1752997833626,-164.77,0.000175,2]
[373421298,1752997833636,-466.0,0.000175,2]
[373421300,1752997833646,-1083.0,0.00017506,2]
[373421302,1752997833655,-2585.71991183,0.00017521,2]
[373421304,1752997833664,-168.0,0.00017537,2]
[373421306,1752997833674,-2585.71991183,0.00017555,2]
[373421308,1752997833683,-2500.0,0.00017582,2]
[373421310,1752997833693,-565.69539559,0.00017582,2]
[373421312,1752997833702,-2585.71991183,0.0001759,2]
[373421314,1752997833712,-557.66484,0.00017599,2]
[373421316,1752997833721,-600.0,0.000176,2]
[373421318,1752997833730,-427.338546,0.000176,2]
[373421320,1752997833740,-2009.20826276,0.000176,2]
[373421322,1752997833751,-3633.08280063,0.000176,2]
[373421329,1752997833804,-1500.56493661,0.000176,2]
[373421331,1752997833814,-231.28369723,0.000176,2]
[373421332,1752997833824,-500.0,0.000176,2]
[373421333,1752997833833,-500.0,0.000176,2]
[373421334,1752997833843,-500.0,0.000176,2]
[373421335,1752997833852,-500.0,0.000176,2]
[373421336,1752997833861,-500.0,0.000176,2]
[373421337,1752997833870,-500.0,0.000176,2]
[373421338,1752997833880,-500.0,0.000176,2]
[373421339,1752997833889,-500.0,0.000176,2]
[373421340,1752997833898,-500.0,0.000176,2]
[373421341,1752997833908,-500.0,0.000176,2]
[373421342,1752997833917,-500.0,0.000176,2]
[373421343,1752997833927,-500.0,0.000176,2]
[373421345,1752997833937,-500.0,0.000176,2]
[373421347,1752997833947,-500.0,0.000176,2]
[373421349,1752997833956,-500.0,0.000176,2]
[373421351,1752997833965,-500.0,0.000176,2]
[373421353,1752997833975,-2400.62726,0.000176,2]
[373421355,1752997833984,-1000.0,0.00017603,2]
[373421357,1752997833994,-1000.0,0.00017603,2]
[373421359,1752997834003,-300.0,0.00017603,2]
[373421361,1752997834013,-1000.0,0.00017603,2]
[373421363,1752997834023,-2585.71991183,0.00017624,2]
[373421365,1752997834032,-512.0,0.00017627,2]
[373421367,1752997834042,-200.0,0.0001764,2]
[373421369,1752997834051,-2585.71991183,0.00017659,2]
[373421371,1752997834061,-1000.0,0.0001767,2]
[373421373,1752997834070,-50350.9981,0.00017682,2]
[373421375,1752997834081,-1000.0,0.00017682,2]
[373421377,1752997834089,-5000.0,0.00017682,2]
[373421379,1752997834099,-5690.2014,0.00017682,2]
[373421381,1752997834108,-2937.3641,0.00017682,2]
[373421383,1752997834117,-11028.6798,0.00017682,2]
[373421385,1752997834127,-5845.2393,0.00017682,2]
[373421387,1752997834136,-10000.0,0.00017682,2]
[373421389,1752997834145,-155.76146031,0.00017682,2]
[373421391,1752997834155,-182.46850797,0.00017682,2]
[373421393,1752997834164,-227.48120657,0.00017682,2]
[373421395,1752997834174,-925.13134927,0.00017682,2]
[373421397,1752997834183,-207.43087061,0.00017682,2]
[373421399,1752997834193,-191.90488337,0.00017682,3]
[373421401,1752997834202,-570.87969194,0.00017682,2]
[373421403,1752997834211,-4030.95639222,0.00017682,2]
[373421405,1752997834223,-2161.81813956,0.00017682,2]
[373421408,1752997834234,-529.44059147,0.00017682,2]
[373421410,1752997834244,-2585.71991183,0.00017693,2]
[373421412,1752997834253,-420.0,0.00017707,2]
[373421414,1752997834262,-725.9778864,0.0001772,2]
[373421416,1752997834273,-410.69768071,0.0001772,2]
[373421418,1752997834284,-780.12139315,0.0001772,2]
[373421420,1752997834298,-462.33081884,0.0001772,2]
[373421423,1752997834314,-21.4994809,0.0001772,2]
[373421425,1752997834323,-1810.87827645,0.00017728,2]
[373421427,1752997834335,-637.00273649,0.00017728,2]
[373421809,1752997838273,-2419.03627715,0.0001757,2]
[373421893,1752997839095,-200.80622557,0.0001757,2]
[373421895,1752997839105,-137.83889889,0.00017728,2]
[373421897,1752997839114,-2709.90696451,0.0001774,2]
[373421899,1752997839123,-2975.92064876,0.0001774,2]
[373421901,1752997839135,-17024.07935124,0.0001774,2]
[373421903,1752997839144,-230.53968171,0.0001776,2]
[373421905,1752997839153,-2585.71991183,0.00017762,2]
[373421907,1752997839163,-168.0,0.00017765,2]
[373421910,1752997839172,-168.0,0.0001777,2]
[373421912,1752997839181,-257.0,0.00017771,2]
[373421913,1752997839190,-500.0,0.00017773,2]
[373421915,1752997839200,-500.0,0.00017773,2]
[373421917,1752997839209,-112.23875377,0.00017773,2]
[373421920,1752997839220,-387.76124623,0.00017773,2]
[373421922,1752997839229,-500.0,0.00017773,2]
[373421924,1752997839239,-200.0,0.00017781,2]
[373421926,1752997839248,-1210.0,0.00017781,2]
[373421928,1752997839258,-1210.0,0.00017781,2]
[373421930,1752997839267,-1206.0,0.00017781,2]
[373421932,1752997839281,-1210.0,0.00017781,2]
[373421934,1752997839291,-1210.0,0.00017781,2]
[373421936,1752997839300,-1207.0,0.00017781,2]
[373421937,1752997839310,-1210.0,0.00017781,2]
[373421938,1752997839319,-1210.0,0.00017781,2]
[373421939,1752997839327,-1210.0,0.00017781,2]
[373421940,1752997839337,-1210.0,0.00017781,2]
[373421941,1752997839346,-1210.0,0.00017781,2]
[373421942,1752997839355,-1210.0,0.00017781,2]
[373421943,1752997839365,-1210.0,0.00017781,2]
[373421944,1752997839374,-1210.0,0.00017781,2]
[373421945,1752997839384,-1210.0,0.00017781,2]
[373421946,1752997839394,-1210.0,0.00017781,2]
[373421947,1752997839403,-1210.0,0.00017781,2]
[373421949,1752997839412,-1210.0,0.00017781,2]
[373421951,1752997839421,-1210.0,0.00017781,2]
[373421953,1752997839430,-1210.0,0.00017781,2]
[373421955,1752997839440,-1210.0,0.00017781,2]
[373421957,1752997839450,-1210.0,0.00017781,2]
[373421959,1752997839459,-1210.0,0.00017781,2]
[373421962,1752997839469,-906.80080915,0.00017781,2]
[373421964,1752997839478,-1210.0,0.00017781,2]
[373421966,1752997839488,-1210.0,0.00017781,2]
[373421968,1752997839497,-1210.0,0.00017781,2]
[373421969,1752997839506,-1210.0,0.00017781,2]
[373421972,1752997839516,-150.0,0.00017781,2]
[373421973,1752997839525,-500.0,0.00017781,2]
[373421975,1752997839534,-500.0,0.00017781,2]
[373421977,1752997839543,-566.0,0.00017781,2]
[373421979,1752997839553,-150.0,0.00017781,2]
[373421981,1752997839562,-500.0,0.00017781,2]
[373421983,1752997839571,-150.0,0.00017781,2]
[373421985,1752997839580,-150.0,0.00017781,2]
[373421987,1752997839589,-150.0,0.00017781,2]
[373421989,1752997839599,-150.0,0.00017781,2]
[373421992,1752997839608,-500.0,0.00017781,2]
[373421994,1752997839617,-178.39700075,0.00017781,2]
[373421996,1752997839626,-150.0,0.00017781,2]
[373421998,1752997839636,-150.0,0.00017781,2]
[373422000,1752997839649,-112.91627295,0.00017781,2]
[373422006,1752997839692,-503.60225337,0.00017496,2]
[373422008,1752997839702,-387.08372705,0.00017781,2]
[373422010,1752997839712,-150.0,0.00017781,2]
[373422012,1752997839721,-500.0,0.00017781,2]
[373422014,1752997839730,-1121.0,0.00017781,2]
[373422016,1752997839739,-1457.0,0.00017781,2]
[373422018,1752997839749,-500.0,0.00017781,2]
[373422020,1752997839758,-150.0,0.00017781,2]
[373422022,1752997839767,-1210.0,0.00017781,2]
[373422024,1752997839776,-448.22,0.00017781,2]
[373422026,1752997839786,-1210.0,0.00017781,2]
[373422028,1752997839799,-1210.0,0.00017781,2]
[373422030,1752997839810,-1210.0,0.00017781,2]
[373422032,1752997839819,-150.0,0.00017781,2]
[373422034,1752997839828,-150.0,0.00017781,2]
[373422036,1752997839838,-48393.63109458,0.00017782,2]
[373422074,1752997840237,1109.0,0.0003013,120]
[373422075,1752997840519,-421.8967004,0.00017782,2]
[373422076,1752997840531,-699.92799513,0.00017782,2]
[373422077,1752997840543,-2214.0,0.00017782,2]
[373422078,1752997840652,-898.29933228,0.00017782,2]
[373422130,1752997841148,1506.0,0.0003013,120]
[373422203,1752997841975,1255.0,0.0003013,120]
[373422352,1752997843390,-652.78000001,0.00017582,2]
[373422364,1752997843506,-1967.06250263,0.00017582,2]
[373422367,1752997843516,-1440.64162588,0.00017782,2]
[373422369,1752997843528,-3748.16411446,0.00017782,2]
[373422371,1752997843540,-2976.50089705,0.00017782,2]
[373422715,1752997847006,-3442.25841,0.00017782,2]
[373422718,1752997847017,-2805.66563332,0.00017782,2]
[373423393,1752997864377,1643.0,0.0003013,120]
[373423394,1752997865279,1624.0,0.0003013,120]
[373423395,1752997866080,587.0,0.0003013,120]
[373423396,1752997866238,500.0,0.0003013,120]
[373423397,1752997866748,1066.2,0.0003013,120]
[373423398,1752997881752,227.0,0.0003013,120]
[373423399,1752997894357,1422.4377958,0.00030037,120]
[373423400,1752997895944,200.0,0.00021918,120]
[373423401,1752997896270,200.0,0.00024658,120]
[373423402,1752997896579,500.0,0.0003013,120]
[373423403,1752997896671,200.0,0.00027397,120]
[373423404,1752997896907,495.42646236,0.0003013,120]
[373423405,1752997897043,200.0,0.00030137,120]
[373423406,1752997908190,500.0,0.0003013,120]
[373423407,1752997925221,1000.0,0.00030136,120]
[373423408,1752997962806,939.84897534,0.00027397,120]
[373423409,1752997969758,500.0,0.0003013,120]
[373423410,1752997974358,153.0,0.00025,120]
[373423411,1752997975753,153.0,0.000263,120]
[373423412,1752997977142,153.0,0.000276,120]
[373423413,1752997978519,153.0,0.000288,120]
[373423414,1752997979959,153.0,0.000301,120]
[373423415,1752997982060,1000.0,0.00030136,120]
[373423416,1752997988631,532.24634,0.0003013,120]
[373423417,1752997989944,500.0,0.00025279,120]
[373423418,1752997990293,500.0,0.00026498,120]
[373423419,1752997990805,500.0,0.00027717,120]
[373423420,1752997991134,500.0,0.00028935,120]
[373423421,1752997991621,500.0,0.00030136,120]
[373423422,1752997994529,1163.74,0.00027397,120]
[373423423,1752997995201,1163.74,0.00027397,120]
[373423424,1752997995399,1163.74,0.00027397,120]
[373423425,1752997995532,1163.74,0.00027397,120]
[373423426,1752997995764,1163.74,0.00027397,120]
[373423427,1752997995991,1163.74,0.00027397,120]
[373423428,1752997996214,1163.74,0.00027397,120]
[373423429,1752997996456,1163.74,0.00027397,120]
[373423430,1752997996690,1163.74,0.00027397,120]
[373423431,1752997996932,1163.74,0.00027397,120]
[373423432,1752997997246,1163.74,0.00027397,120]
[373423433,1752997997490,1163.74,0.00027397,120]
[373423434,1752997997764,1163.74,0.00027397,120]
[373423435,1752997998031,1163.74,0.00027397,120]
[373423436,1752997998295,1163.74,0.00027397,120]
[373423437,1752997998530,1163.74,0.00027397,120]
[373423438,1752997998781,1163.74,0.00027397,120]
[373423439,1752997999007,1163.74,0.00027397,120]
[373423440,1752997999124,2000.0,0.00025279,120]
[373423441,1752997999235,1163.74,0.00027397,120]
[373423442,1752997999492,1163.74,0.00027397,120]
[373423443,1752997999584,2000.0,0.00026402,120]
[373423444,1752997999720,1163.74,0.00027397,120]
[373423445,1752997999931,2000.0,0.00027525,120]
[373423446,1752998000031,1163.74,0.00027397,120]
[373423447,1752998000204,1163.74,0.00027397,120]